fUSD/lending_fUSD_20240909
["ID","MTS","AMOUNT","RATE_DAILY","PERIOD"]
[337601616,1725889840563,-660363.06052479,0.00013169,2]
[337601617,1725889840572,-451.077,0.00013169,2]
[337601619,1725889840581,-1261.0,0.00013169,2]
[337601621,1725889840591,-624.0,0.00013169,2]
[337601623,1725889840600,-1547.0,0.00013169,2]
[337601625,1725889840609,-811.0,0.00013169,2]
[337601627,1725889840619,-931.0,0.00013169,2]
[337601629,1725889840627,-557.0,0.00013169,2]
[337601631,1725889840637,-553.0,0.00013169,2]
[337601633,1725889840646,-1900.0,0.00013169,2]
[337601635,1725889840656,-805.0,0.00013169,2]
[337601637,1725889840665,-1921.0,0.00013169,2]
[337601639,1725889840675,-1119.0,0.00013169,2]
[337601641,1725889840687,-248.0,0.00013169,2]
[337601642,1725889840696,-3343.0,0.00013169,2]
[337601644,1725889840706,-5859.0,0.00013169,2]
[337601646,1725889840715,-221.034,0.00013169,2]
[337601648,1725889840724,-150.0,0.00013169,2]
[337601650,1725889840733,-1145.0,0.00013169,2]
[337601652,1725889840743,-1079.0,0.00013169,2]
[337601654,1725889840752,-150.0,0.00013169,2]
[337601656,1725889840761,-500.0,0.00013173,2]
[337601658,1725889840770,-500.0,0.00013173,2]
[337601660,1725889840781,-550.03473,0.00013173,2]
[337601662,1725889840790,-299.42610939,0.00013173,2]
[337601664,1725889840799,-422.24,0.000132,2]
[337601666,1725889840808,-422.24,0.000132,2]
[337601668,1725889840817,-422.24,0.000132,2]
[337601669,1725889840826,-422.24,0.000132,2]
[337601671,1725889840835,-422.24,0.000132,2]
[337601673,1725889840844,-422.24,0.000132,2]
[337601675,1725889840854,-422.24,0.000132,2]
[337601677,1725889840863,-422.24,0.000132,2]
[337601680,1725889840873,-421.34,0.000132,2]
[337601681,1725889840883,-904.0,0.000132,2]
[337601683,1725889840892,-514.4,0.000132,2]
[337601685,1725889840902,-359.0,0.000132,2]
[337601687,1725889840911,-1000.0,0.000132,2]
[337601689,1725889840921,-2000.0,0.00013261,2]
[337601691,1725889840930,-200.0,0.00013261,2]
[337601693,1725889840943,-4827.60114731,0.00013299,2]
[337601695,1725889840952,-2000.0,0.00013394,2]
[337601697,1725889840961,-10000.0,0.000134,2]
[337601699,1725889840970,-152.0,0.00013437,3]
[337601701,1725889840979,-4827.60114731,0.00013498,2]
[337601703,1725889840988,-4827.60114731,0.00013697,2]
[337601705,1725889840998,-500.0,0.00013698,2]
[337601706,1725889841007,-166.09,0.00013699,2]
[337601708,1725889841016,-200.0,0.00013699,2]
[337601710,1725889841026,-179.2,0.00013699,2]
[337601712,1725889841036,-113592.99,0.000137,2]
[337601714,1725889841045,-152.58,0.00013751,2]
[337601716,1725889841055,-332.36,0.00013761,2]
[337601718,1725889841064,-4827.60114731,0.00013897,2]
[337601720,1725889841077,-10000.0,0.000139,2]
[337601722,1725889841086,-66280.2541246,0.000139,2]
[337601725,1725889841096,-500.0,0.00013934,2]
[337601726,1725889841105,-500.0,0.00013943,2]
[337601728,1725889841114,-500.0,0.00013952,2]
[337601730,1725889841124,-500.0,0.00013961,2]
[337601732,1725889841133,-500.0,0.0001397,2]
[337601734,1725889841144,-500.0,0.00013978,2]
[337601736,1725889841154,-500.0,0.00013987,2]
[337601738,1725889841163,-500.0,0.00013996,2]
[337601740,1725889841171,-1000.0,0.00013997,2]
[337601742,1725889841181,-260.07619799,0.00014,2]
[337601744,1725889841194,-173.0,0.00014,2]
[337601746,1725889841203,-150.0,0.00014,2]
[337601748,1725889841212,-500.0,0.00014005,2]
[337601750,1725889841221,-500.0,0.00014014,2]
[337601752,1725889841231,-500.0,0.00014022,2]
[337601754,1725889841240,-500.0,0.00014031,2]
[337601756,1725889841249,-500.0,0.0001404,2]
[337601758,1725889841258,-500.0,0.00014049,2]
[337601760,1725889841267,-500.0,0.00014058,2]
[337601762,1725889841276,-500.0,0.00014066,2]
[337601764,1725889841286,-500.0,0.00014075,2]
[337601766,1725889841295,-500.0,0.00014084,2]
[337601768,1725889841304,-500.0,0.00014093,2]
[337601770,1725889841313,-255.0,0.00014093,2]
[337601772,1725889841322,-4827.60114731,0.00014096,2]
[337601774,1725889841331,-1000.0,0.000141,2]
[337601775,1725889841340,-500.0,0.00014102,2]
[337601777,1725889841349,-500.0,0.0001411,2]
[337601779,1725889841359,-500.0,0.00014119,2]
[337601781,1725889841368,-500.0,0.00014128,2]
[337601783,1725889841377,-500.0,0.00014137,2]
[337601785,1725889841387,-500.0,0.00014146,2]
[337601787,1725889841397,-500.0,0.00014154,2]
[337601789,1725889841406,-500.0,0.00014163,2]
[337601791,1725889841416,-500.0,0.00014172,2]
[337601793,1725889841425,-500.0,0.00014181,2]
[337601796,1725889841437,-500.0,0.0001419,2]
[337601797,1725889841446,-500.0,0.00014198,2]
[337601799,1725889841455,-500.0,0.00014207,2]
[337601801,1725889841464,-500.0,0.00014216,2]
[337601803,1725889841473,-500.0,0.00014225,2]
[337601805,1725889841482,-500.0,0.00014234,2]
[337601807,1725889841491,-152.58,0.00014237,2]
[337601809,1725889841500,-500.0,0.00014242,2]
[337601811,1725889841509,-500.0,0.00014246,2]
[337601813,1725889841518,-500.0,0.00014251,2]
[337601815,1725889841527,-500.0,0.0001426,2]
[337601817,1725889841536,-500.0,0.00014269,2]
[337601819,1725889841545,-833.571371,0.00014269,2]
[337601821,1725889841554,-833.571371,0.00014269,2]
[337601823,1725889841563,-500.0,0.00014278,2]
[337601825,1725889841573,-500.0,0.00014286,2]
[337601827,1725889841582,-500.0,0.00014295,2]
[337601829,1725889841591,-4827.60114731,0.00014295,2]
[337601831,1725889841600,-500.0,0.00014304,2]
[337601833,1725889841609,-500.0,0.00014313,2]
[337601835,1725889841618,-500.0,0.00014322,2]
[337601837,1725889841627,-500.0,0.0001433,2]
[337601839,1725889841635,-151.624276,0.00014339,2]
[337601841,1725889841644,-151.0,0.00014339,2]
[337601843,1725889841653,-151.0,0.00014339,2]
[337601845,1725889841662,-151.0,0.00014339,2]
[337601847,1725889841671,-151.0,0.00014339,2]
[337601848,1725889841680,-220.002505,0.00014339,2]
[337601850,1725889841690,-220.002505,0.00014339,2]
[337601852,1725889841700,-500.0,0.00014339,2]
[337601854,1725889841709,-500.0,0.00014348,2]
[337601856,1725889841718,-500.0,0.00014357,2]
[337601858,1725889841727,-500.0,0.00014366,2]
[337601860,1725889841735,-500.0,0.00014374,2]
[337601862,1725889841744,-500.0,0.00014383,2]
[337601864,1725889841753,-166.09,0.00014384,2]
[337601866,1725889841762,-500.0,0.00014392,2]
[337601868,1725889841771,-10000.0,0.000144,2]
[337601870,1725889841780,-1462.0,0.000144,2]
[337601872,1725889841789,-500.0,0.00014401,2]
[337601874,1725889841798,-500.0,0.0001441,2]
[337601876,1725889841807,-500.0,0.00014418,2]
[337601878,1725889841816,-500.0,0.00014427,2]
[337601880,1725889841825,-500.0,0.00014436,2]
[337601881,1725889841834,-500.0,0.00014445,2]
[337601883,1725889841843,-500.0,0.00014454,2]
[337601885,1725889841852,-500.0,0.00014462,2]
[337601887,1725889841860,-151.0,0.00014471,2]
[337601889,1725889841870,-273.33,0.00014471,2]
[337601891,1725889841879,-273.33,0.00014471,2]
[337601893,1725889841888,-500.0,0.00014471,2]
[337601895,1725889841899,-500.0,0.0001448,2]
[337601897,1725889841908,-500.0,0.00014489,2]
[337601899,1725889841918,-4827.60114731,0.00014495,2]
[337601901,1725889841928,-151.0,0.00014495,2]
[337601903,1725889841939,-151.0,0.00014495,2]
[337601905,1725889841948,-500.0,0.00014498,2]
[337601907,1725889841957,-151.0,0.000145,2]
[337601909,1725889841966,-656.817685,0.000145,2]
[337601911,1725889841975,-656.817685,0.000145,2]
[337601913,1725889841984,-500.0,0.00014506,2]
[337601915,1725889841995,-500.0,0.00014515,2]
[337601917,1725889842004,-500.0,0.00014515,2]
[337601919,1725889842013,-340.458907,0.00014521,2]
[337601921,1725889842023,-500.0,0.00014524,2]
[337601923,1725889842033,-500.0,0.00014524,2]
[337601925,1725889842042,-500.0,0.00014533,2]
[337601927,1725889842052,-500.0,0.00014533,2]
[337601929,1725889842063,-500.0,0.00014542,2]
[337601931,1725889842076,-500.0,0.00014542,2]
[337601933,1725889842087,-152.107078,0.00014542,2]
[337601935,1725889842097,-3306.204596,0.00014542,2]
[337601937,1725889842106,-3306.204596,0.00014542,2]
[337601939,1725889842115,-152.107078,0.00014542,2]
[337601941,1725889842128,-1000.0,0.00014542,2]
[337601943,1725889842138,-500.0,0.0001455,2]
[337601945,1725889842147,-500.0,0.0001455,2]
[337601947,1725889842162,-500.0,0.00014559,2]
[337601949,1725889842172,-500.0,0.00014559,2]
[337601951,1725889842181,-500.0,0.00014568,2]
[337601953,1725889842193,-500.0,0.00014568,2]
[337601955,1725889842204,-500.0,0.00014577,2]
[337601958,1725889842213,-500.0,0.00014577,2]
[337601959,1725889842223,-152.0,0.00014578,4]
[337601961,1725889842232,-67805.88913659,0.00014578,2]
[337601963,1725889842241,-204.638173,0.00014578,2]
[337601965,1725889842250,-204.638173,0.00014578,2]
[337601967,1725889842259,-632.664829,0.00014578,2]
[337601969,1725889842268,-632.664829,0.00014578,2]
[337601971,1725889842277,-151.0,0.00014578,2]
[337601973,1725889842287,-575.798503,0.00014578,2]
[337601975,1725889842295,-575.798503,0.00014578,2]
[337601977,1725889842305,-1994.035304,0.00014578,2]
[337601979,1725889842314,-1994.035304,0.00014578,2]
[337601981,1725889842323,-2999.430443,0.00014578,2]
[337601983,1725889842332,-2999.430443,0.00014578,2]
[337601985,1725889842341,-500.0,0.00014586,2]
[337601987,1725889842350,-500.0,0.00014586,2]
[337601989,1725889842359,-86006.78572285,0.00014594,2]
[337601991,1725889842368,-151.0,0.00014594,2]
[337601993,1725889842376,-1685.113218,0.00014594,2]
[337601995,1725889842386,-1685.113218,0.00014594,2]
[337601997,1725889842395,-1232.540918,0.00014594,2]
[337601999,1725889842403,-500.0,0.00014594,2]
[337602001,1725889842413,-500.0,0.00014594,2]
[337602003,1725889842422,-500.0,0.00014603,2]
[337602005,1725889842431,-500.0,0.00014603,2]
[337602007,1725889842444,-500.0,0.00014612,2]
[337602009,1725889842453,-500.0,0.00014612,2]
[337602011,1725889842462,-500.0,0.00014621,2]
[337602013,1725889842471,-500.0,0.0001463,2]
[337602015,1725889842480,-500.0,0.00014638,2]
[337602017,1725889842489,-500.0,0.00014647,2]
[337602019,1725889842498,-500.0,0.00014656,2]
[337602020,1725889842505,-500.0,0.00014665,2]
[337602022,1725889842515,-500.0,0.00014674,2]
[337602026,1725889842523,-500.0,0.00014682,2]
[337602030,1725889842533,-500.0,0.00014691,2]
[337602051,1725889842819,-1419.305124,0.00014694,2]
[337602052,1725889842828,-1419.305124,0.00014694,2]
[337602053,1725889842837,-4827.60114731,0.00014694,2]
[337602054,1725889842846,-1341.66631563,0.000147,2]
[337602055,1725889842855,-500.0,0.000147,2]
[337602057,1725889842863,-152.58,0.00014724,2]
[337602059,1725889842872,-150.0,0.00014773,2]
[337602061,1725889842882,-500.0,0.00014794,2]
[337602063,1725889842892,-500.0,0.00014794,2]
[337602065,1725889842902,-500.0,0.00014794,2]
[337602067,1725889842913,-555.62517513,0.00014794,2]
[337602069,1725889842922,-151.0,0.00014794,2]
[337602071,1725889842931,-151.0,0.00014794,2]
[337602073,1725889842943,-151.0,0.00014794,2]
[337602075,1725889842958,-151.0,0.00014794,2]
[337602077,1725889842967,-151.0,0.00014794,2]
[337602079,1725889842977,-151.0,0.00014794,2]
[337602081,1725889842987,-151.0,0.00014794,2]
[337602083,1725889842996,-151.0,0.00014794,2]
[337602085,1725889843005,-151.0,0.00014794,2]
[337602087,1725889843014,-151.0,0.00014794,2]
[337602089,1725889843024,-151.950012,0.00014794,2]
[337602092,1725889843032,-500.0,0.00014794,2]
[337602095,1725889843041,-500.0,0.00014794,2]
[337602098,1725889843050,-500.0,0.00014794,2]
[337602100,1725889843059,-500.0,0.00014794,2]
[337602102,1725889843069,-500.0,0.00014794,2]
[337602104,1725889843080,-333.52254386,0.00014794,2]
[337602106,1725889843089,-151.0,0.00014794,2]
[337602108,1725889843098,-151.0,0.00014794,2]
[337602110,1725889843107,-151.0,0.00014794,2]
[337602112,1725889843117,-151.0,0.00014794,2]
[337602114,1725889843127,-263.536336,0.00014794,2]
[337602116,1725889843136,-239.241468,0.00014794,2]
[337602118,1725889843146,-180.73626,0.00014794,2]
[337602120,1725889843156,-180.73626,0.00014794,2]
[337602122,1725889843165,-180.73626,0.00014794,2]
[337602124,1725889843174,-180.73626,0.00014794,2]
[337602126,1725889843183,-180.73626,0.00014794,2]
[337602128,1725889843195,-180.73626,0.00014794,2]
[337602130,1725889843205,-180.73626,0.00014794,2]
[337602131,1725889843214,-180.73626,0.00014794,2]
[337602133,1725889843223,-180.73626,0.00014794,2]
[337602135,1725889843233,-180.73626,0.00014794,2]
[337602137,1725889843243,-180.73626,0.00014794,2]
[337602139,1725889843252,-180.73626,0.00014794,2]
[337602141,1725889843261,-180.73626,0.00014794,2]
[337602143,1725889843271,-180.73626,0.00014794,2]
[337602146,1725889843280,-180.73626,0.00014794,2]
[337602148,1725889843289,-180.73626,0.00014794,2]
[337602149,1725889843298,-180.73626,0.00014794,2]
[337602151,1725889843307,-180.73626,0.00014794,2]
[337602153,1725889843318,-180.73626,0.00014794,2]
[337602155,1725889843327,-180.736254,0.00014794,2]
[337602157,1725889843336,-500.0,0.00014794,2]
[337602159,1725889843345,-500.0,0.00014794,2]
[337602161,1725889843354,-500.0,0.00014794,2]
[337602163,1725889843363,-500.0,0.00014794,2]
[337602165,1725889843373,-500.0,0.00014794,2]
[337602167,1725889843382,-500.0,0.00014794,2]
[337602169,1725889843392,-500.0,0.00014794,2]
[337602171,1725889843401,-500.0,0.00014794,2]
[337602173,1725889843410,-500.0,0.00014794,2]
[337602175,1725889843420,-500.0,0.00014794,2]
[337602177,1725889843429,-500.0,0.00014794,2]
[337602179,1725889843440,-382.72877552,0.00014794,2]
[337602181,1725889843449,-500.0,0.00014794,2]
[337602183,1725889843459,-500.0,0.00014794,2]
[337602185,1725889843468,-566.00943515,0.00014794,2]
[337602187,1725889843477,-500.0,0.00014794,2]
[337602189,1725889843487,-500.0,0.00014794,2]
[337602191,1725889843496,-538.60618048,0.00014794,2]
[337602193,1725889843506,-505.7608969,0.00014794,2]
[337602195,1725889843516,-500.0,0.00014794,2]
[337602197,1725889843525,-522.21564985,0.00014794,2]
[337602199,1725889843535,-500.0,0.00014794,2]
[337602200,1725889843544,-500.0,0.00014794,2]
[337602202,1725889843554,-500.0,0.00014794,2]
[337602204,1725889843564,-220.97724544,0.00014794,2]
[337602206,1725889843573,-500.0,0.00014794,2]
[337602208,1725889843582,-500.0,0.00014794,2]
[337602210,1725889843591,-500.0,0.00014794,2]
[337602212,1725889843601,-500.0,0.00014794,2]
[337602214,1725889843610,-500.0,0.00014794,2]
[337602216,1725889843619,-500.0,0.00014794,2]
[337602218,1725889843629,-500.0,0.00014794,2]
[337602220,1725889843638,-500.0,0.00014794,2]
[337602222,1725889843647,-500.0,0.00014794,2]
[337602224,1725889843656,-600.97992564,0.00014794,2]
[337602226,1725889843666,-501.6265734,0.00014794,2]
[337602228,1725889843675,-500.0,0.00014794,2]
[337602230,1725889843684,-500.0,0.00014794,2]
[337602232,1725889843694,-500.0,0.00014794,2]
[337602234,1725889843703,-500.0,0.00014794,2]
[337602236,1725889843713,-500.0,0.00014794,2]
[337602238,1725889843723,-500.0,0.00014794,2]
[337602240,1725889843732,-500.0,0.00014794,2]
[337602242,1725889843742,-500.0,0.00014794,2]
[337602244,1725889843752,-294.92072083,0.00014794,2]
[337602246,1725889843761,-151.0,0.00014794,2]
[337602248,1725889843771,-151.0,0.00014794,2]
[337602250,1725889843781,-500.0,0.00014794,2]
[337602252,1725889843790,-500.0,0.00014794,2]
[337602254,1725889843799,-151.0,0.00014794,2]
[337602256,1725889843808,-500.0,0.00014794,2]
[337602258,1725889843817,-151.0,0.00014794,2]
[337602260,1725889843826,-500.0,0.00014794,2]
[337602261,1725889843835,-151.0,0.00014794,2]
[337602263,1725889843845,-500.0,0.00014794,2]
[337602265,1725889843853,-500.0,0.00014794,2]
[337602267,1725889843862,-151.0,0.00014794,2]
[337602269,1725889843871,-500.0,0.00014794,2]
[337602271,1725889843881,-151.0,0.00014794,2]
[337602273,1725889843890,-500.0,0.00014794,2]
[337602275,1725889843899,-151.0,0.00014794,2]
[337602277,1725889843908,-151.0,0.00014794,2]
[337602279,1725889843918,-500.0,0.00014794,2]
[337602281,1725889843927,-151.0,0.00014794,2]
[337602283,1725889843939,-500.0,0.00014794,2]
[337602285,1725889843948,-265.169091,0.00014794,2]
[337602287,1725889843958,-500.0,0.00014794,2]
[337602289,1725889843968,-500.0,0.00014794,2]
[337602291,1725889843977,-500.0,0.00014794,2]
[337602293,1725889843987,-500.0,0.00014794,2]
[337602295,1725889843996,-500.0,0.00014794,2]
[337602297,1725889844006,-500.0,0.00014794,2]
[337602299,1725889844015,-500.0,0.00014794,2]
[337602301,1725889844025,-500.0,0.00014794,2]
[337602303,1725889844035,-500.0,0.00014794,2]
[337602305,1725889844043,-500.0,0.00014794,2]
[337602307,1725889844053,-500.0,0.00014794,2]
[337602309,1725889844063,-500.0,0.00014794,2]
[337602310,1725889844073,-500.0,0.00014794,2]
[337602312,1725889844084,-500.0,0.00014794,2]
[337602314,1725889844093,-500.0,0.00014794,2]
[337602316,1725889844103,-500.0,0.00014794,2]
[337602318,1725889844112,-500.0,0.00014794,2]
[337602320,1725889844122,-500.0,0.00014794,2]
[337602322,1725889844131,-500.0,0.00014794,2]
[337602324,1725889844141,-500.0,0.00014794,2]
[337602326,1725889844150,-500.0,0.00014794,2]
[337602328,1725889844159,-500.0,0.00014794,2]
[337602330,1725889844168,-500.0,0.00014794,2]
[337602332,1725889844178,-500.0,0.00014794,2]
[337602334,1725889844188,-500.0,0.00014794,2]
[337602336,1725889844197,-500.0,0.00014794,2]
[337602338,1725889844207,-500.0,0.00014794,2]
[337602340,1725889844216,-500.0,0.00014794,2]
[337602341,1725889844226,-500.0,0.00014794,2]
[337602343,1725889844236,-500.0,0.00014794,2]
[337602345,1725889844245,-500.0,0.00014794,2]
[337602347,1725889844255,-514.25121995,0.00014794,2]
[337602349,1725889844264,-500.0,0.00014794,2]
[337602351,1725889844274,-500.0,0.00014794,2]
[337602353,1725889844283,-500.0,0.00014794,2]
[337602355,1725889844292,-500.0,0.00014794,2]
[337602357,1725889844301,-500.0,0.00014794,2]
[337602359,1725889844310,-500.0,0.00014794,2]
[337602361,1725889844320,-500.0,0.00014794,2]
[337602363,1725889844328,-500.0,0.00014794,2]
[337602365,1725889844337,-338.64843543,0.00014794,2]
[337602367,1725889844347,-500.0,0.00014794,2]
[337602368,1725889844356,-500.0,0.00014794,2]
[337602369,1725889844366,-500.0,0.00014794,2]
[337602370,1725889844375,-500.0,0.00014794,2]
[337602371,1725889844385,-500.0,0.00014794,2]
[337602372,1725889844394,-500.0,0.00014794,2]
[337602373,1725889844404,-500.0,0.00014794,2]
[337602374,1725889844414,-500.0,0.00014794,2]
[337602375,1725889844423,-484.09771852,0.00014794,2]
[337602376,1725889844434,-151.0,0.00014794,2]
[337602377,1725889844445,-151.0,0.00014794,2]
[337602378,1725889844455,-151.0,0.00014794,2]
[337602379,1725889844464,-151.0,0.00014794,2]
[337602380,1725889844474,-151.0,0.00014794,2]
[337602381,1725889844484,-151.0,0.00014794,2]
[337602382,1725889844493,-151.0,0.00014794,2]
[337602383,1725889844503,-151.0,0.00014794,2]
[337602384,1725889844512,-151.0,0.00014794,2]
[337602385,1725889844522,-152.667193,0.00014794,2]
[337602386,1725889844531,-151.0,0.00014794,2]
[337602387,1725889844541,-151.0,0.00014794,2]
[337602388,1725889844550,-151.0,0.00014794,2]
[337602389,1725889844560,-151.0,0.00014794,2]
[337602390,1725889844569,-151.0,0.00014794,2]
[337602391,1725889844579,-151.0,0.00014794,2]
[337602392,1725889844588,-151.0,0.00014794,2]
[337602393,1725889844597,-151.0,0.00014794,2]
[337602394,1725889844606,-151.0,0.00014794,2]
[337602395,1725889844616,-153.562994,0.00014794,2]
[337602396,1725889844625,-151.0,0.00014794,2]
[337602397,1725889844635,-500.0,0.00014794,2]
[337602398,1725889844644,-151.0,0.00014794,2]
[337602399,1725889844653,-500.0,0.00014794,2]
[337602400,1725889844662,-500.0,0.00014794,2]
[337602401,1725889844672,-151.0,0.00014794,2]
[337602402,1725889844681,-500.0,0.00014794,2]
[337602403,1725889844693,-151.0,0.00014794,2]
[337602404,1725889844702,-500.0,0.00014794,2]
[337602405,1725889844711,-151.0,0.00014794,2]
[337602406,1725889844720,-500.0,0.00014794,2]
[337602407,1725889844730,-500.0,0.00014794,2]
[337602408,1725889844739,-151.0,0.00014794,2]
[337602409,1725889844749,-500.0,0.00014794,2]
[337602410,1725889844759,-500.0,0.00014794,2]
[337602411,1725889844768,-151.0,0.00014794,2]
[337602412,1725889844778,-500.0,0.00014794,2]
[337602413,1725889844788,-151.0,0.00014794,2]
[337602414,1725889844798,-500.0,0.00014794,2]
[337602415,1725889844807,-500.0,0.00014794,2]
[337602416,1725889844816,-151.0,0.00014794,2]
[337602417,1725889844826,-500.0,0.00014794,2]
[337602418,1725889844836,-151.0,0.00014794,2]
[337602419,1725889844845,-500.0,0.00014794,2]
[337602420,1725889844855,-151.0,0.00014794,2]
[337602421,1725889844864,-500.0,0.00014794,2]
[337602422,1725889844874,-500.0,0.00014794,2]
[337602423,1725889844883,-500.0,0.00014794,2]
[337602424,1725889844893,-151.0,0.00014794,2]
[337602425,1725889844902,-500.0,0.00014794,2]
[337602426,1725889844911,-500.0,0.00014794,2]
[337602427,1725889844920,-500.0,0.00014794,2]
[337602428,1725889844930,-151.0,0.00014794,2]
[337602429,1725889844940,-500.0,0.00014794,2]
[337602431,1725889844950,-151.0,0.00014794,2]
[337602433,1725889844959,-500.0,0.00014794,2]
[337602434,1725889844969,-151.0,0.00014794,2]
[337602435,1725889844978,-500.0,0.00014794,2]
[337602436,1725889844987,-500.0,0.00014794,2]
[337602437,1725889844996,-151.0,0.00014794,2]
[337602438,1725889845006,-354.0256354,0.00014794,2]
[337602439,1725889845016,-151.0,0.00014794,2]
[337602440,1725889845026,-255.562133,0.00014794,2]
[337602441,1725889845036,-151.0,0.00014794,2]
[337602442,1725889845045,-151.0,0.00014794,2]
[337602443,1725889845055,-151.0,0.00014794,2]
[337602444,1725889845064,-151.0,0.00014794,2]
[337602445,1725889845076,-151.0,0.00014794,2]
[337602446,1725889845086,-1406.63,0.00014794,2]
[337602447,1725889845095,-1406.63,0.00014794,2]
[337602448,1725889845105,-1406.63,0.00014794,2]
[337602449,1725889845115,-1406.63,0.00014794,2]
[337602450,1725889845125,-1406.63,0.00014794,2]
[337602451,1725889845134,-1406.63,0.00014794,2]
[337602452,1725889845143,-1406.63,0.00014794,2]
[337602453,1725889845153,-1406.63,0.00014794,2]
[337602454,1725889845163,-1406.63,0.00014794,2]
[337602455,1725889845172,-1406.63,0.00014794,2]
[337602456,1725889845182,-1406.63,0.00014794,2]
[337602457,1725889845194,-1406.63,0.00014794,2]
[337602458,1725889845204,-1406.63,0.00014794,2]
[337602459,1725889845214,-1406.63,0.00014794,2]
[337602460,1725889845223,-1406.63,0.00014794,2]
[337602461,1725889845233,-1406.63,0.00014794,2]
[337602462,1725889845244,-1406.63,0.00014794,2]
[337602463,1725889845253,-1406.63,0.00014794,2]
[337602464,1725889845261,-1406.63,0.00014794,2]
[337602465,1725889845271,-1406.63,0.00014794,2]
[337602466,1725889845280,-1406.63,0.00014794,2]
[337602467,1725889845290,-1406.63,0.00014794,2]
[337602468,1725889845299,-1406.63,0.00014794,2]
[337602469,1725889845309,-1406.82876692,0.00014794,2]
[337602470,1725889845318,-1797.24,0.00014794,2]
[337602471,1725889845327,-1797.24,0.00014794,2]
[337602472,1725889845337,-1797.24,0.00014794,2]
[337602473,1725889845347,-1797.24,0.00014794,2]
[337602474,1725889845356,-1797.24,0.00014794,2]
[337602475,1725889845365,-1797.24,0.00014794,2]
[337602476,1725889845375,-1797.24,0.00014794,2]
[337602477,1725889845384,-1797.24,0.00014794,2]
[337602478,1725889845394,-1797.24,0.00014794,2]
[337602479,1725889845402,-1797.24,0.00014794,2]
[337602480,1725889845411,-1797.24,0.00014794,2]
[337602481,1725889845421,-1797.24,0.00014794,2]
[337602482,1725889845430,-1797.24,0.00014794,2]
[337602483,1725889845441,-1797.24,0.00014794,2]
[337602484,1725889845451,-500.0,0.00014794,2]
[337602486,1725889845460,-1797.24,0.00014794,2]
[337602488,1725889845470,-500.0,0.00014794,2]
[337602489,1725889845479,-1797.24,0.00014794,2]
[337602490,1725889845489,-500.0,0.00014794,2]
[337602491,1725889845498,-1797.24,0.00014794,2]
[337602492,1725889845507,-151.0,0.00014794,2]
[337602493,1725889845516,-500.0,0.00014794,2]
[337602494,1725889845525,-1797.24,0.00014794,2]
[337602495,1725889845535,-500.0,0.00014794,2]
[337602496,1725889845544,-1797.24,0.00014794,2]
[337602497,1725889845554,-189.745641,0.00014794,2]
[337602498,1725889845563,-500.0,0.00014794,2]
[337602499,1725889845573,-1797.24,0.00014794,2]